[Event "Croatian 1A League 2022"]
[Site "Porec"]
[Date "2022.09.30"]
[Round "7.27"]
[White "Bosiocic, Marin"]
[Black "Christiansen, Johan-Sebastian"]
[Result "0-1"]
[ECO "A07"]
[WhiteElo "2548"]
[BlackElo "2583"]
[Annotator "TA"]
[PlyCount "80"]
[EventDate "2022.09.24"]
[EventType "team-tourn"]
[EventCountry "CRO"]
[SourceTitle "playchess.com"]
[Source "ChessBase"]
[SourceQuality "1"]
[TimeControl "40/5400+30:1800+30"]

{[%evp 10,80,12,13,16,12,3,0,22,20,17,25,30,14,28,0,54,54,41,42,56,60,57,29,33,31,102,25,39,26,19,-62,-37,-33,55,-6,-4,-32,-39,-43,17,-83,-95,-243,-206,-270,-257,-302,-297,-264,-303,-375,-361,-362,-351,-386,-359,-373,-370,-478,-486,-497,-372,-358,-383,-649,-653,-904,-891,-877,-861,-858,-810]} 1. Nf3 {[%emt 0:00:32]} d5 {[%emt 0:00:23]} 2. g3 {[%emt 0:00:11]} Nf6 {[%emt 0:01:02]} 3. Bg2 {[%emt 0:00:08]} c6 {[%emt 0:01:17]} 4. O-O {[%emt 0:00:25]} Bf5 {[%emt 0:00:22]} 5. d3 {[%emt 0:00:14]} e6 {[%emt 0:01:48]} 6. Nh4 {[%emt 0:02:41]} Bg4 {[%emt 0:00:33] A07: Réti Opening: New York and Capablanca Systems.} 7. h3 {[%emt 0:00:08]} Bh5 {[%emt 0:00:16]} 8. f4 {[%emt 0:00:12]} Be7 {[%emt 0:07:46] The position is equal.} 9. g4 {[%emt 0:02:50]} Nfd7 {[%emt 0:02:35]} 10. Nf3 {[%emt 0:00:45]} Bg6 {[%emt 0:00:01]} 11. Nc3 {[%emt 0:01:02] [#]} Qb6+ $146 {[%emt 0:10:30]} ({Predecessor:} 11... O-O 12. Kh1 Nc5 13. Qe1 Nbd7 14. b4 Na6 15. a3 f5 16. e3 Nc7 17. Ne2 Qe8 {0-1 (48) Conde Poderoso,A (2352)-Armani,G (2311) ICCF email 2020}) 12. Kh2 {[%emt 0:02:36]} d4 {[%emt 0:02:06]} (12... Na6 $11) 13. Na4 $1 $14 {[%emt 0:04:49]} Qa5 {[%emt 0:08:51]} 14. b3 {[%emt 0:02:00]} h5 {[%emt 0:09:37] Hoping for ...hxg4.} 15. g5 {[%emt 0:00:55]} Qc7 {[%emt 0:00:32]} 16. Kh1 {[%emt 0:02:34]} c5 $1 {[%emt 0:00:56]} 17. c3 {[%emt 0:01:23]} b5 {[%emt 0:06:08] [#]} (17... Nc6 $14) 18. cxd4 {[%emt 0:01:02]} (18. Nxc5 $1 $16 {[%mdl 512]} Nxc5 19. Nxd4) 18... bxa4 $11 {[%emt 0:00:56]} 19. Nh4 {[%emt 0:01:05]} Nc6 {[%emt 0:04:41]} 20. Nxg6 {[%emt 0:07:32]} (20. dxc5 $11 Rd8 21. Nxg6 fxg6 22. Be3) 20... fxg6 $15 {[%emt 0:00:08]} 21. dxc5 {[%emt 0:01:22]} O-O {[%emt 0:02:51]} (21... Nxc5 22. b4 $16) (21... Bxc5 $15 22. b4 Bxb4 23. Qxa4 Rc8) 22. Be3 {[%emt 0:04:23]} (22. d4 $14) 22... e5 $11 {[%emt 0:10:21][%cal Re5f4]} ({Don't do} 22... Nxc5 23. Rc1 axb3 24. axb3 $14 (24. Bxc5 b2 $15)) (22... Bxc5 23. Bxc5 Nxc5 24. Rc1 $14) 23. Qc1 {[%emt 0:03:54]} Kh7 {[%emt 0:03:29]} 24. Qc4 {[%emt 0:02:17]} Rae8 {[%emt 0:06:04]} (24... Rac8 $15) 25. b4 {[%emt 0:01:46] [#]} (25. Be4 $1 $11 {keeps the balance.} exf4 26. Bxf4) 25... Bd8 $1 $17 {[%emt 0:03:57][%cal Be7d8,Bd8g5,Bg5e3][%mdl 32]} 26. Be4 {[%emt 0:09:07] Now White is beyond hope.} (26. Qe4 $17 Ne7 27. fxe5) 26... exf4 $19 {[%emt 0:00:15]} 27. Bxf4 {[%emt 0:01:30]} Nde5 {[%emt 0:00:16]} ({Inferior is} 27... Rxf4 28. Bxg6+ Kxg6 29. Rxf4 $17) 28. Qc3 {[%emt 0:06:58] [#]} Rxf4 $1 {[%emt 0:01:50][%mdl 512]} 29. Rxf4 {[%emt 0:00:33]} Bxg5 {[%emt 0:00:02]} 30. Rf2 {[%emt 0:03:36]} Be3 {[%emt 0:01:05] Prevents d4.} 31. Rg2 {[%emt 0:00:00]} Bd4 {[%emt 0:00:26]} 32. Qe1 {[%emt 0:00:00]} Bxa1 {[%emt 0:00:10]} 33. Qxa1 {[%emt 0:00:00]} Qd7 {[%emt 0:10:33] Against d4} 34. b5 {[%emt 0:02:07]} Nd4 {[%emt 0:00:29]} 35. c6 {[%emt 0:00:36]} Qd6 {[%emt 0:01:55]} 36. e3 {[%emt 0:01:51]} Nf5 {[%emt 0:00:33]} ({Wrong is} 36... Nxb5 $2 37. Qd1 $19) 37. Qg1 $2 {[%emt 0:04:40]} (37. Bxf5 gxf5 38. Qf1) 37... Nh4 {[%emt 0:00:01] Black is clearly winning.} 38. Rc2 {[%emt 0:05:30]} Nef3 {[%emt 0:00:19][%cal Be5f3,Bf3g5,Bg5e4][%mdl 32]} 39. Qf1 {[%emt 0:01:16]} Ng5 {[%emt 0:00:31]} 40. Qf4 {[%emt 0:00:00]} Nxe4 {[%emt 0:00:00] Weighted Error Value: White=0.45/Black=0.16 (very precise)} 0-1

[Event "Croatian 1A League 2022"]
[Site "Porec"]
[Date "2022.09.30"]
[Round "7.28"]
[White "Martinovic, Sasa"]
[Black "Fucak, Emilio Milko"]
[Result "1-0"]
[ECO "E32"]
[WhiteElo "2546"]
[BlackElo "2187"]
[Annotator "TA"]
[PlyCount "67"]
[EventDate "2022.09.24"]
[EventType "team-tourn"]
[EventCountry "CRO"]
[SourceTitle "playchess.com"]
[Source "ChessBase"]
[SourceQuality "1"]
[TimeControl "40/5400+30:1800+30"]

{[%evp 15,67,4,29,20,35,0,0,0,0,0,0,0,33,18,9,11,66,66,63,67,75,80,73,64,70,69,83,73,79,88,120,125,121,116,143,134,244,220,354,345,356,346,618,618,583,547,1621,1602,29974,29975,29976,29977,29976,2328]} 1. d4 {[%emt 0:00:02]} Nf6 {[%emt 0:00:08]} 2. c4 {[%emt 0:00:04]} e6 {[%emt 0:00:05]} 3. Nc3 {[%emt 0:00:03]} Bb4 {[%emt 0:00:06]} 4. Qc2 {[%emt 0:00:04]} O-O {[%emt 0:00:42]} 5. Nf3 {[%emt 0:00:03]} d6 {[%emt 0:00:37]} 6. Bd2 {[%emt 0:00:11][%cal Bc1d2,Bd2c3,Bc3a1][%mdl 32]} Nbd7 {[%emt 0:05:48]} 7. a3 {[%emt 0:03:35]} Bxc3 {[%emt 0:00:08]} 8. Bxc3 {[%emt 0:00:03]} Qe7 {[%emt 0:00:34]} 9. e4 {[%emt 0:09:52] E32: Nimzo-Indian: Classical (4 Qc2): 4...0-0.} e5 {[%emt 0:01:07]} 10. d5 {[%emt 0:01:24]} a5 {[%emt 0:01:07]} 11. b4 {[%emt 0:05:48] The position is equal.} axb4 {[%emt 0:01:48]} 12. axb4 {[%emt 0:00:03]} Rxa1+ {[%emt 0:00:05]} 13. Bxa1 {[%emt 0:00:02]} c5 {[%emt 0:00:09]} 14. Bc3 {[%emt 0:05:10]} cxb4 {[%emt 0:06:31]} 15. Bxb4 {[%emt 0:00:04] [#]} Nc5 $146 {[%emt 0:00:10]} (15... b6 $11) ({Predecessor:} 15... b6 16. Nd2 Nc5 17. Be2 Ne8 18. O-O f5 19. exf5 Bxf5 20. Qc3 Nf6 21. Qe3 Qd7 {½-½ (37) Graf,A (2420)-Savon,V (2445) Pinsk 1986}) 16. Bxc5 $14 {[%emt 0:01:03]} dxc5 {[%emt 0:00:02]} 17. Bd3 {[%emt 0:00:19]} Ne8 {[%emt 0:00:48]} 18. Qb2 {[%emt 0:07:54]} f6 {[%emt 0:06:58]} 19. O-O {[%emt 0:03:54]} Qc7 {[%emt 0:25:49]} 20. Rb1 {[%emt 0:00:29] White is more active.} Rf7 {[%emt 0:01:58]} 21. Nd2 {[%emt 0:02:52]} Rd7 {[%emt 0:05:55]} 22. Qa3 {[%emt 0:10:00]} Rd6 {[%emt 0:04:26] [#]} 23. Nb3 $1 {[%emt 0:08:00]} Rb6 {[%emt 0:03:11]} 24. h3 {[%emt 0:12:05]} h6 {[%emt 0:08:47]} 25. Kh2 {[%emt 0:03:36]} Nd6 {[%emt 0:02:29]} (25... Kf7 $16 26. Nxc5 Rxb1 27. Bxb1 Nd6) 26. Qa5 $18 {[%emt 0:01:42][%cal Ob3d4] Hoping for Nd4!} (26. Qxc5 Qxc5 27. Nxc5 Rxb1 28. Bxb1 Nxc4 $11) 26... f5 {[%emt 0:06:07]} (26... Ne8 $142 27. Qxc5 (27. Nxc5 Rxb1 28. Qxc7 Nxc7 $16) 27... Qxc5 28. Nxc5 Rxb1 29. Bxb1 Nd6) 27. f3 {[%emt 0:03:38][%cal Bf2f3,Bf3e4][%mdl 32]} ({Don't do} 27. Nxc5 Rc6 28. Nb3 (28. dxc6 $2 Qxa5 29. cxb7 Nxb7 $19) 28... Qxa5 29. Nxa5 Rc5 $18) (27. Qxc5 Qxc5 28. Nxc5 Rxb1 29. Bxb1 fxe4 $11) 27... fxe4 {[%emt 0:03:49]} 28. fxe4 {[%emt 0:00:07]} Bxh3 $2 {[%emt 0:05:23]} (28... Ne8 29. Nxc5 Rxb1 30. Qxc7 Nxc7) 29. gxh3 {[%emt 0:06:11]} Qd8 {[%emt 0:00:27]} 30. Nd2 {[%emt 0:04:51]} Nf7 {[%emt 0:01:49]} 31. Qxb6 {[%emt 0:02:11] [#] Threatening mate with Qe6.} Qh4 {[%emt 0:00:44]} 32. Rf1 {[%emt 0:03:24] White mates.} Ng5 {[%emt 0:00:06]} 33. Qd8+ {[%emt 0:00:14]} Kh7 {[%emt 0:00:04]} 34. Qc8 {[%emt 0:00:24] Weighted Error Value: White=0.04 (flawless) /Black=0.61} 1-0

[Event "Croatian 1A League 2022"]
[Site "Porec"]
[Date "2022.09.30"]
[Round "7.29"]
[White "Medancic, Rikard"]
[Black "Kurajica, Bojan"]
[Result "0-1"]
[ECO "E21"]
[WhiteElo "2120"]
[BlackElo "2488"]
[Annotator "TA"]
[PlyCount "46"]
[EventDate "2022.09.24"]
[EventType "team-tourn"]
[EventCountry "CRO"]
[SourceTitle "playchess.com"]
[Source "ChessBase"]
[SourceQuality "1"]
[TimeControl "40/5400+30:1800+30"]

{[%evp 9,46,18,19,11,28,8,8,-19,-15,-29,-38,-43,-18,-46,-18,-27,-24,-58,-47,-49,43,-102,-97,-95,-91,-91,-78,-129,-96,-150,-171,-224,-228,-308,-299,-521,-528,-574,-603]} 1. d4 {[%emt 0:00:35]} Nf6 {[%emt 0:00:10]} 2. c4 {[%emt 0:00:32]} e6 {[%emt 0:00:11]} 3. Nc3 {[%emt 0:00:28]} Bb4 {[%emt 0:00:07]} 4. Nf3 {[%emt 0:00:21]} Bxc3+ {[%emt 0:02:19]} 5. bxc3 {[%emt 0:00:06]} d6 {[%emt 0:00:54]} 6. Bg5 {[%emt 0:00:40] E21: Nimzo-Indian: 4 Nf3.} Nbd7 {[%emt 0:03:29]} 7. e3 {[%emt 0:02:07]} b6 {[%emt 0:03:02]} 8. Be2 {[%emt 0:00:42] The position is equal.} h6 {[%emt 0:00:13]} 9. Bh4 {[%emt 0:00:08]} g5 {[%emt 0:00:26]} 10. Bg3 {[%emt 0:00:06]} Bb7 {[%emt 0:02:04]} (10... Ne4 $5 {[%cal Re4c3]}) 11. O-O {[%emt 0:07:15] [#]} h5 $146 {[%emt 0:02:41][%mdl 2048] [#] Hoping for ...h4. White is under pressure.} ({Predecessor:} 11... Ne4 12. Rc1 Ndf6 13. Ne1 h5 14. f3 Nxg3 15. hxg3 h4 16. g4 h3 17. Rf2 Ke7 {0-1 (25) Bogo,S (2238)-Hansen,S (2589) Lund 2018}) 12. h4 {[%emt 0:01:43]} (12. Nxg5 {with more complications.} h4 13. Bf4 e5 14. Bf3) 12... Ne4 {[%emt 0:04:20]} 13. Nxg5 {[%emt 0:02:50]} Nxg5 {[%emt 0:04:32]} 14. hxg5 {[%emt 0:01:33]} h4 {[%emt 0:00:30]} (14... Qxg5 $15 15. Bf3 Bxf3 16. Qxf3 Ke7) 15. Bh2 {[%emt 0:07:07]} (15. Bf4 $14 {was the only good move.}) 15... Qxg5 $17 {[%emt 0:00:18][%csl Gb7][%cal Rg5g2] [#]} ({Much weaker is} 15... h3 $6 16. Bf3 hxg2 17. Re1 Qxg5 18. Bxb7 $11) 16. Bf3 {[%emt 0:00:16]} Bxf3 {[%emt 0:01:13] Black is more active.} 17. Qxf3 {[%emt 0:00:06]} Ke7 {[%emt 0:00:20]} 18. Qh3 {[%emt 0:03:25]} (18. a4 $142) 18... Nf6 {[%emt 0:02:33][%cal Bd7f6,Bf6e4,Be4g3][%mdl 32]} 19. Rfe1 {[%emt 0:12:17]} (19. Bf4 $142 Qh5 20. f3) 19... Ne4 {[%emt 0:05:54]} 20. Rac1 {[%emt 0:16:45]} (20. a4 $142) 20... Rag8 $19 {[%emt 0:00:59]} 21. f3 {[%emt 0:01:21]} Ng3 {[%emt 0:05:56]} 22. Rb1 $2 {[%emt 0:03:45]} (22. d5) 22... Qa5 {[%emt 0:02:18][%csl LRa2,LRc3]} 23. c5 {[%emt 0:04:07]} bxc5 {[%emt 0:01:56] Weighted Error Value: White=0.61/Black=0.07 (flawless)} 0-1

[Event "Croatian 1A League 2022"]
[Site "Porec"]
[Date "2022.09.30"]
[Round "7.30"]
[White "Cvitan, Ognjen"]
[Black "Mihalic, Goran"]
[Result "1-0"]
[ECO "D03"]
[WhiteElo "2445"]
[BlackElo "2023"]
[Annotator "TA"]
[PlyCount "123"]
[EventDate "2022.09.24"]
[EventType "team-tourn"]
[EventCountry "CRO"]
[SourceTitle "playchess.com"]
[Source "ChessBase"]
[SourceQuality "1"]
[TimeControl "40/5400+30:1800+30"]

{[%evp 20,123,0,0,30,31,22,15,15,15,15,15,15,18,15,15,15,15,15,19,40,34,55,49,53,10,11,7,9,0,0,0,0,0,82,82,82,82,82,82,87,83,122,122,122,122,122,122,122,122,122,122,122,122,122,122,122,122,122,122,122,122,122,122,122,122,122,122,122,122,122,8,122,122,122,8,8,8,8,8,29971,29972,29973,29974,29972,29975,29975,29976,29976,29977,29979,29978,29978,29979,29979,29980,29980,29981,29981,29982,29982,29983,29983,29984,29985,29985]} 1. d4 {[%emt 0:03:21]} Nf6 {[%emt 0:00:07]} 2. Nf3 {[%emt 0:00:24]} g6 {[%emt 0:00:25]} 3. Bg5 {[%emt 0:00:10]} Bg7 {[%emt 0:00:07]} 4. Nbd2 {[%emt 0:00:07]} d5 {[%emt 0:00:18]} 5. e3 {[%emt 0:00:24]} O-O {[%emt 0:00:09]} 6. Bd3 {[%emt 0:00:23]} Nbd7 {[%emt 0:00:20]} 7. O-O {[%emt 0:00:08]} Re8 {[%emt 0:04:01]} 8. c4 {[%emt 0:05:43]} c6 {[%emt 0:04:55]} 9. b4 {[%emt 0:05:01]} e5 {[%emt 0:10:27]} 10. cxd5 {[%emt 0:01:21]} cxd5 {[%emt 0:00:13]} 11. Bb5 {[%emt 0:06:18] [#]} Qb6 $146 {[%emt 0:07:59] D03: 1 d4 d5 2 Nf3 Nf6 3 Bg5, including Torre Attack with early ...d5.} ({Predecessor:} 11... exd4 12. Nxd4 a6 13. Bxd7 Bxd7 14. Qb3 Qb6 15. Bxf6 Bxf6 16. Qxd5 Bb5 17. Nxb5 Rad8 18. Qc5 Qxc5 19. bxc5 axb5 20. Rad1 Ra8 21. Rb1 Rxa2 22. Nf3 {½-½ (22) Sasikiran,K (2535)-Visweswaran,K (2272) Sangli 1999}) 12. Qa4 {[%emt 0:02:21] Hoping for Bxf6.} a6 {[%emt 0:13:18]} 13. Bxf6 {[%emt 0:07:19]} Qxb5 {[%emt 0:00:20] The position is equal.} 14. Qxb5 {[%emt 0:00:08]} axb5 {[%emt 0:00:06]} 15. Bxg7 {[%emt 0:00:06]} Kxg7 {[%emt 0:00:06]} (15... e4 {with more complications.} 16. Bh6 exf3 17. gxf3 Nb6) 16. dxe5 {[%emt 0:00:32]} Nxe5 {[%emt 0:00:07]} 17. Nxe5 {[%emt 0:00:08]} Rxe5 {[%emt 0:00:06]} 18. Nf3 {[%emt 0:00:22]} Re6 {[%emt 0:03:00]} 19. Rfd1 {[%emt 0:00:24]} Rd6 {[%emt 0:03:41]} 20. h3 {[%emt 0:01:23]} Be6 {[%emt 0:06:40]} 21. Nd4 {[%emt 0:00:35]} Rda6 {[%emt 0:02:25]} 22. Rd2 {[%emt 0:02:11]} Ra4 {[%emt 0:05:02]} 23. Rc1 {[%emt 0:01:47]} Rxb4 {[%emt 0:03:21]} 24. Nxe6+ {[%emt 0:01:44]} fxe6 $11 {[%emt 0:00:06][%mdl 4096] Endgame KRR-KRR} 25. Rc7+ {[%emt 0:00:01]} Kf6 {[%emt 0:00:35]} 26. Rxh7 {[%emt 0:00:46]} Rba4 {[%emt 0:01:15]} (26... Rb1+ $11 {remains equal.} 27. Kh2 Ra1) 27. Rxb7 $16 {[%emt 0:00:44] White is more active.} Rxa2 {[%emt 0:03:25]} 28. Rxa2 {[%emt 0:00:07]} Rxa2 {[%emt 0:00:04]} 29. Rxb5 {[%emt 0:00:02] KR-KR} Ra1+ {[%emt 0:00:23]} 30. Kh2 {[%emt 0:00:06]} Rd1 {[%emt 0:00:06]} 31. h4 {[%emt 0:00:29]} d4 {[%emt 0:00:49]} 32. exd4 {[%emt 0:00:26]} Rxd4 {[%emt 0:00:06]} 33. Kh3 {[%emt 0:01:36]} Rd3+ {[%emt 0:04:18]} 34. g3 {[%emt 0:00:38]} Rc3 {[%emt 0:01:41]} 35. Kg4 {[%emt 0:04:15]} Rd3 {[%emt 0:01:08]} 36. f4 {[%emt 0:00:54]} Re3 {[%emt 0:03:09]} 37. h5 {[%emt 0:00:09]} gxh5+ {[%emt 0:00:13]} 38. Rxh5 {[%emt 0:00:02]} Ra3 {[%emt 0:02:07]} 39. Rh6+ {[%emt 0:05:56]} Kf7 {[%emt 0:00:19]} 40. Kh4 {[%emt 0:00:00]} Ra4 {[%emt 0:00:00]} 41. Rh5 {[%emt 0:01:00]} Kf6 {[%emt 0:00:54]} 42. Rg5 {[%emt 0:00:34]} Rb4 {[%emt 0:01:24]} 43. Kh5 {[%emt 0:00:22]} Ra4 {[%emt 0:02:07]} 44. Rg6+ {[%emt 0:00:38]} Kf7 {[%emt 0:01:15]} 45. Kh6 {[%emt 0:01:29]} ({Only move:} 45. Rg4 $1 $16) 45... Rb4 {[%emt 0:03:50]} (45... Ra2 $11 {keeps the balance.}) 46. Rg7+ {[%emt 0:02:28]} Kf6 {[%emt 0:00:58]} 47. g4 {[%emt 0:01:55]} ({White should play} 47. Rg8 $16) 47... Rxf4 $11 {[%emt 0:00:54]} 48. g5+ {[%emt 0:00:04]} Ke5 {[%emt 0:00:02]} 49. g6 {[%emt 0:00:05] aiming for Rf7.} Kd4 $2 {[%emt 0:00:58][%mdl 8192] Loses the game.} (49... Rh4+ $11 50. Kg5 Rh1) 50. Rd7+ $1 {[%emt 0:01:32] White mates.} Ke4 {[%emt 0:00:17]} 51. g7 {[%emt 0:00:25]} Rg4 {[%emt 0:02:57]} 52. Rd8 {[%emt 0:08:29]} e5 {[%emt 0:00:33]} 53. g8=Q {[%emt 0:00:08]} Rxg8 {[%emt 0:00:08]} 54. Rxg8 {[%emt 0:00:06] KR-KP} Kf4 {[%emt 0:00:16]} 55. Rf8+ {[%emt 0:00:05]} Kg3 {[%emt 0:00:03]} 56. Re8 $1 {[%emt 0:00:06]} Kf4 {[%emt 0:00:03]} 57. Kh5 $1 {[%emt 0:00:08]} e4 {[%emt 0:00:15]} 58. Kh4 $1 {[%emt 0:00:05]} Kf3 {[%emt 0:04:11] [#]} 59. Kh3 $1 {[%emt 0:00:20]} e3 {[%emt 0:00:46] [#]} 60. Rf8+ $1 {[%emt 0:00:04]} Ke2 {[%emt 0:00:18]} 61. Kg2 {[%emt 0:00:06]} Ke1 {[%emt 0:01:25]} 62. Re8 {[%emt 0:00:08] Weighted Error Value: White=0.11 (very precise) /Black=0.25 (precise)} 1-0

[Event "Croatian 1A League 2022"]
[Site "Porec"]
[Date "2022.10.01"]
[Round "8.1"]
[White "Saric, Ivan"]
[Black "Donchenko, Alexander"]
[Result "1/2-1/2"]
[ECO "C54"]
[WhiteElo "2668"]
[BlackElo "2639"]
[Annotator "TA"]
[PlyCount "53"]
[EventDate "2022.09.24"]
[EventType "team-tourn"]
[EventCountry "CRO"]
[SourceTitle "playchess.com"]
[Source "ChessBase"]
[SourceQuality "1"]
[TimeControl "40/5400+30:1800+30"]

{[%evp 12,53,19,9,17,19,12,0,0,0,0,0,0,0,0,0,7,0,26,19,14,12,41,0,0,0,0,0,0,0,0,-8,7,9,9,5,5,8,2,3,4,0,0,0]} 1. e4 {[%emt 0:01:12]} e5 {[%emt 0:00:08]} 2. Nf3 {[%emt 0:00:09]} Nc6 {[%emt 0:00:06]} 3. Bc4 {[%emt 0:00:32]} Nf6 {[%emt 0:00:15]} 4. d3 {[%emt 0:00:05][%cal Bd2d3,Bd3d4][%mdl 32]} Bc5 {[%emt 0:00:14]} 5. O-O {[%emt 0:00:15]} d6 {[%emt 0:00:22]} 6. c3 {[%emt 0:00:06]} O-O {[%emt 0:00:28]} 7. Re1 {[%emt 0:00:58] Nowadays more popular than 7.Bb3.} a5 {[%emt 0:00:18] C54: Giuoco Piano: 4 c3 Nf6, main lines with 5 d4 and 5 d3.} 8. h3 {[%emt 0:01:36]} h6 {[%emt 0:00:36]} 9. d4 {[%emt 0:01:00]} Ba7 {[%emt 0:11:16][%cal Of6e4]} 10. Bb3 {[%emt 0:00:38]} Re8 {[%emt 0:03:41]} 11. Bc2 {[%emt 0:00:30]} b5 {[%emt 0:09:40][%cal Bb7b5,Bb5b4][%mdl 32]} 12. a4 {[%emt 0:06:14]} b4 {[%emt 0:03:04]} 13. Be3 {[%emt 0:00:46] [#]} Rb8 $146 {[%emt 0:12:12]} ({Predecessor:} 13... bxc3 14. Nxc3 exd4 15. Nxd4 Nb4 16. Rc1 Bb7 17. Nf5 Bxe3 18. Rxe3 Bc8 19. Nd4 c6 {0-1 (53) Goganov,A (2549)-Petrov,N (2561) Anapa 2022}) 14. Nbd2 {[%emt 0:02:58]} Ba6 {[%emt 0:09:10]} 15. Rc1 {[%emt 0:15:00]} Bb6 {[%emt 0:03:54]} 16. Bb1 {[%emt 0:03:28]} Qd7 {[%emt 0:01:15]} 17. d5 {[%emt 0:05:01]} Ne7 {[%emt 0:01:05] The position is equal.} 18. cxb4 {[%emt 0:00:46] [#] aiming for b5.} Bxe3 {[%emt 0:00:37]} 19. Rxe3 {[%emt 0:00:03][%cal Be1e3,Be3c3,Bc3c7][%mdl 32] Threatens to win with b5.} Rxb4 {[%emt 0:00:17]} 20. Rec3 {[%emt 0:02:07]} Rc8 {[%emt 0:01:46]} (20... Rxb2 {seems wilder.} 21. Rxc7 Qd8 22. Qe1 Qb8) 21. Qc2 {[%emt 0:06:48][%cal Rc3c7]} Qxa4 {[%emt 0:02:02]} 22. Qxa4 {[%emt 0:00:23]} Rxa4 {[%emt 0:00:03]} 23. Rxc7 {[%emt 0:00:24]} Rb4 {[%emt 0:02:36]} 24. b3 {[%emt 0:02:28]} a4 {[%emt 0:02:36]} 25. bxa4 {[%emt 0:05:38]} Rxa4 {[%emt 0:00:28]} 26. Rxc8+ {[%emt 0:02:16]} Nxc8 {[%emt 0:00:42]} 27. Bc2 {[%emt 0:00:28] An interesting draw.  Weighted Error Value: White=0.05 (flawless) /Black=0.05 (flawless)} 1/2-1/2

[Event "Croatian 1A League 2022"]
[Site "Porec"]
[Date "2022.10.01"]
[Round "8.2"]
[White "Livaic, Leon"]
[Black "Banusz, Tamas"]
[Result "1/2-1/2"]
[ECO "E06"]
[WhiteElo "2565"]
[BlackElo "2622"]
[Annotator "TA"]
[PlyCount "62"]
[EventDate "2022.09.24"]
[EventType "team-tourn"]
[EventCountry "CRO"]
[SourceTitle "playchess.com"]
[Source "ChessBase"]
[SourceQuality "1"]
[TimeControl "40/5400+30:1800+30"]

{[%evp 12,62,29,27,16,21,36,0,14,13,8,2,10,0,2,-7,23,16,33,32,26,27,27,35,31,13,14,10,19,0,0,0,0,0,18,10,29,6,32,32,32,31,32,32,32,32,32,32,32,11,18,0,32]} 1. d4 {[%emt 0:00:02]} Nf6 {[%emt 0:01:01]} 2. c4 {[%emt 0:00:07]} e6 {[%emt 0:00:04]} 3. Nf3 {[%emt 0:00:06]} d5 {[%emt 0:00:05]} 4. g3 {[%emt 0:00:05]} Be7 {[%emt 0:00:13]} 5. Bg2 {[%emt 0:00:06]} O-O {[%emt 0:00:06]} 6. Nc3 {[%emt 0:03:01]} c6 {[%emt 0:00:14]} 7. O-O {[%emt 0:00:35]} a5 {[%emt 0:00:05][%cal Ba7a5,Ba5a4][%mdl 32] E06: Closed Catalan: Early deviations.} 8. Re1 {[%emt 0:04:03]} Ne4 {[%emt 0:00:11] [#]} 9. e3 $146 {[%emt 0:04:16]} ({Predecessor:} 9. Qc2 Nxc3 10. bxc3 Nd7 11. cxd5 cxd5 12. c4 dxc4 13. Qxc4 Nb6 14. Qd3 Nd5 15. a3 {½-½ (33) Aydin,A (1756)-Guliev,L (2333) Konya 2018}) 9... f5 {[%emt 0:05:29]} 10. Qc2 {[%emt 0:05:35]} Nd7 {[%emt 0:05:05]} 11. Ne2 {[%emt 0:01:14]} g5 {[%emt 0:07:09] Against Nf4} 12. b3 {[%emt 0:04:44]} a4 {[%emt 0:09:26]} 13. Rb1 {[%emt 0:09:30]} Bd6 {[%emt 0:23:20]} 14. Nd2 {[%emt 0:04:37]} Ndf6 {[%emt 0:08:32]} 15. f3 {[%emt 0:01:10]} Nxd2 {[%emt 0:00:46]} 16. Bxd2 {[%emt 0:00:18]} axb3 {[%emt 0:01:55]} 17. axb3 {[%emt 0:00:42]} g4 {[%emt 0:01:55]} 18. f4 {[%emt 0:04:33]} Bd7 {[%emt 0:08:04]} 19. Ra1 {[%emt 0:08:11]} Qe7 {[%emt 0:00:50]} (19... Ne4 {is interesting.} 20. c5 Bc7 21. Reb1 Nxd2 22. Qxd2 Qf6) 20. Rxa8 {[%emt 0:04:05]} Rxa8 {[%emt 0:00:06]} 21. c5 {[%emt 0:00:45]} Bc7 {[%emt 0:00:05]} 22. Qb2 {[%emt 0:01:13]} b6 {[%emt 0:05:05]} 23. Ra1 {[%emt 0:04:05]} Qf8 {[%emt 0:03:57]} 24. Bb4 {[%emt 0:06:55]} b5 {[%emt 0:05:15]} 25. Nc1 {[%emt 0:03:42]} Qb8 {[%emt 0:00:37]} 26. Ra3 {[%emt 0:00:20]} Qb7 {[%emt 0:01:56]} 27. Nd3 {[%emt 0:00:37]} h5 {[%emt 0:00:26]} 28. Qa2 {[%emt 0:00:51]} Rxa3 {[%emt 0:00:05]} 29. Qxa3 {[%emt 0:00:03]} Kg7 {[%emt 0:00:20]} 30. Ba5 {[%emt 0:01:09]} Qa8 {[%emt 0:01:33]} 31. Bb4 {[%emt 0:01:01]} Qxa3 {[%emt 0:01:19] Weighted Error Value: White=0.07 (flawless) /Black=0.08 (flawless)} 1/2-1/2